bitfinex/quotes_BTCUSD_20240701
["timestamp","ask_amount","ask_price","bid_price","bid_amount"]
[1719798623340,0.20284,63611.0,63610.0,1.21727598]
[1719798624684,0.20284,63611.0,63610.0,1.15137598]
[1719798624893,0.20284,63611.0,63610.0,0.83696098]
[1719798629204,0.20284,63611.0,63610.0,0.85696098]
[1719798629406,0.20284,63611.0,63610.0,0.83696098]
[1719798629806,0.20284,63611.0,63610.0,1.17137598]
[1719798629947,0.20284,63611.0,63610.0,0.92196098]
[1719798630147,0.20284,63611.0,63610.0,1.23637598]
[1719798630380,0.20284,63611.0,63610.0,0.92196098]
[1719798631217,0.20284,63611.0,63610.0,0.90196098]
[1719798632263,0.27814,63611.0,63610.0,0.36533898]
[1719798633296,0.27714,63611.0,63610.0,0.2]
[1719798633510,0.238307,63610.0,63609.0,0.06296]
[1719798633712,0.625722,63610.0,63609.0,0.07641623]
[1719798633935,0.940137,63610.0,63609.0,0.07641623]
[1719798634917,0.941137,63610.0,63609.0,0.07941623]
[1719798635121,0.942137,63610.0,63609.0,0.07941623]
[1719798635329,0.869137,63610.0,63609.0,0.07941623]
[1719798635729,0.554722,63610.0,63609.0,0.07941623]
[1719798638090,0.627722,63610.0,63609.0,0.07941623]
[1719798638884,0.553722,63610.0,63609.0,0.06596]
[1719798639080,0.554722,63610.0,63609.0,0.06596]
[1719798639225,0.553722,63610.0,63609.0,0.06596]
[1719798639470,0.552722,63610.0,63609.0,0.06296]
[1719798639926,0.553722,63610.0,63609.0,0.06596]
[1719798640390,0.552722,63610.0,63609.0,0.06296]
[1719798640840,0.553722,63610.0,63609.0,0.06596]
[1719798641299,0.868137,63610.0,63609.0,0.06596]
[1719798641502,0.626722,63610.0,63609.0,0.06596]
[1719798641755,0.941137,63610.0,63609.0,0.06596]
[1719798641948,0.626722,63610.0,63609.0,0.06596]
[1719798642566,0.626722,63610.0,63609.0,0.06296]
[1719798642567,0.625722,63610.0,63609.0,0.06296]
[1719798642771,0.157217,63606.0,63605.0,0.000924]
[1719798642982,0.157217,63606.0,63605.0,0.01438023]
[1719798643398,0.157217,63606.0,63605.0,0.07734123]
[1719798644014,0.471652,63606.0,63605.0,0.07734123]
[1719798644806,0.549352,63606.0,63605.0,0.08034123]
[1719798646421,1.178222,63606.0,63605.0,0.08034123]
[1719798646610,1.178222,63606.0,63605.0,0.01738023]
[1719798647150,1.198222,63606.0,63605.0,0.01738023]
[1719798647391,1.197222,63606.0,63605.0,0.01438023]
[1719798647920,1.177222,63606.0,63605.0,0.01538023]
[1719798648124,1.177222,63606.0,63605.0,0.001924]
[1719798648941,1.177222,63606.0,63605.0,0.000924]
[1719798649283,1.177222,63606.0,63605.0,0.001924]
[1719798649926,0.548352,63606.0,63605.0,0.001924]
[1719798655977,0.233917,63606.0,63605.0,0.001924]
[1719798656581,0.157215,63607.0,63605.0,0.066924]
[1719798656831,0.20084,63611.0,63605.0,0.40691923]
[1719798657049,0.1,63610.0,63607.0,0.065]
[1719798657253,0.1,63610.0,63607.0,0.222215]
[1719798657398,0.1,63610.0,63607.0,0.065]
[1719798658005,0.1,63610.0,63607.0,0.222214]
[1719798658453,0.1,63610.0,63607.0,0.065]
[1719798658866,0.20084,63611.0,63608.0,0.15721]
[1719798659068,0.20084,63611.0,63610.0,0.314415]
[1719798659249,0.20084,63611.0,63610.0,0.613222]
[1719798660050,0.20084,63611.0,63610.0,0.927637]
[1719798660930,0.20184,63611.0,63610.0,0.930637]
[1719798661134,0.20184,63611.0,63610.0,1.29297598]
[1719798661548,0.20184,63611.0,63610.0,1.31297598]
[1719798662583,0.20184,63611.0,63610.0,1.29297598]
[1719798662969,0.20284,63611.0,63610.0,1.62739098]
[1719798663707,0.20284,63611.0,63610.0,1.29297598]
[1719798663929,0.20184,63611.0,63610.0,1.28997598]
[1719798664152,0.20284,63611.0,63610.0,1.60739098]
[1719798664367,0.20284,63611.0,63610.0,1.62739098]
[1719798668133,0.20284,63611.0,63610.0,1.60739098]
[1719798668357,0.20284,63611.0,63610.0,1.29297598]
[1719798668560,0.20284,63611.0,63610.0,1.31297598]
[1719798668802,0.20284,63611.0,63610.0,1.62739098]
[1719798669394,0.20284,63611.0,63610.0,1.31297598]
[1719798669766,0.20284,63611.0,63610.0,1.62739098]
[1719798671468,0.20284,63611.0,63610.0,1.29297598]
[1719798671851,0.20284,63611.0,63610.0,1.31297598]
[1719798672254,0.20284,63611.0,63610.0,1.62739098]
[1719798672676,0.20284,63611.0,63610.0,1.31297598]
[1719798672881,0.20284,63611.0,63610.0,1.62739098]
[1719798673289,0.20284,63611.0,63610.0,1.31297598]
[1719798674301,0.20284,63611.0,63610.0,1.29297598]
[1719798674551,0.20284,63611.0,63610.0,1.31297598]
[1719798674813,0.20284,63611.0,63610.0,1.62739098]
[1719798675264,0.20284,63611.0,63610.0,1.29297598]
[1719798675673,0.20284,63611.0,63610.0,0.674622]
[1719798676113,0.20284,63611.0,63610.0,0.989037]
[1719798679733,0.20284,63611.0,63610.0,1.009037]
[1719798681575,0.20284,63611.0,63610.0,1.48579098]
[1719798681746,0.20284,63611.0,63610.0,1.54709098]
[1719798683301,0.20284,63611.0,63610.0,1.34333794]
[1719798683525,0.20284,63611.0,63610.0,1.21267598]
[1719798684367,0.20284,63611.0,63610.0,1.23267598]
[1719798684573,0.20284,63611.0,63610.0,1.54709098]
[1719798684781,0.20284,63611.0,63610.0,1.62379098]
[1719798684983,0.20284,63611.0,63610.0,1.75445565]
[1719798687561,0.20284,63611.0,63610.0,1.28204065]
[1719798688247,0.20284,63611.0,63610.0,1.28204584]
[1719798688934,0.20284,63611.0,63610.0,1.28204087]
[1719798689634,0.20284,63611.0,63610.0,1.15137598]
[1719798689879,0.20284,63611.0,63610.0,1.28204106]
[1719798690117,0.20284,63611.0,63610.0,1.28204095]
[1719798690603,0.20284,63611.0,63610.0,1.11970197]
[1719798691817,0.20284,63611.0,63610.0,1.13970197]
[1719798692792,0.20284,63611.0,63610.0,1.1397022]
[1719798693046,0.20284,63611.0,63610.0,1.13970221]
[1719798693765,0.20284,63611.0,63610.0,1.21850221]
[1719798694006,0.20284,63611.0,63610.0,1.28400221]
[1719798694708,0.20284,63611.0,63610.0,1.44634119]
[1719798695931,0.20284,63611.0,63610.0,1.44633979]
[1719798696168,0.20284,63611.0,63610.0,1.42633979]
[1719798696436,0.20284,63611.0,63610.0,1.44633979]
[1719798696643,0.20284,63611.0,63610.0,1.76075479]
[1719798697392,0.20284,63611.0,63610.0,1.42633979]
[1719798697628,0.20284,63611.0,63610.0,1.36846379]
[1719798698192,0.20284,63611.0,63610.0,1.68287879]
[1719798699923,0.20284,63611.0,63610.0,1.66287879]
[1719798700147,0.20284,63611.0,63610.0,1.68287879]
[1719798700398,0.20284,63611.0,63610.0,1.75587879]
[1719798700613,0.20284,63611.0,63610.0,1.83677879]
[1719798701050,0.20184,63611.0,63610.0,1.83677879]
[1719798701486,0.20284,63611.0,63610.0,1.83677879]
[1719798701907,0.20184,63611.0,63610.0,1.83377879]
[1719798702070,0.20284,63611.0,63610.0,1.83976845]
[1719798702646,0.20184,63611.0,63610.0,1.83376845]
[1719798702851,0.20084,63611.0,63610.0,1.83376845]
[1719798703053,0.20184,63611.0,63610.0,1.76876845]
[1719798703325,0.20284,63611.0,63610.0,1.75376845]
[1719798703532,0.20284,63611.0,63610.0,1.77376845]
[1719798704981,0.20284,63611.0,63610.0,1.64311498]
[1719798705219,0.20284,63611.0,63610.0,1.7737765]
[1719798706683,0.20284,63611.0,63610.0,1.6928765]
[1719798708140,0.20284,63611.0,63610.0,1.56221498]
[1719798708344,0.20284,63611.0,63610.0,1.69287685]
[1719798708560,0.20284,63611.0,63610.0,1.31296185]
[1719798708967,0.20284,63611.0,63610.0,1.29296185]
[1719798710303,0.20284,63611.0,63610.0,1.31296185]
[1719798711472,0.20284,63611.0,63610.0,1.31296272]
[1719798711699,0.20284,63611.0,63610.0,0.97854772]
[1719798711700,0.28064,63611.0,63610.0,0.97854772]
[1719798713558,0.20284,63611.0,63610.0,0.99854772]
[1719798714250,0.20284,63611.0,63610.0,1.31296272]
[1719798714485,0.20284,63611.0,63610.0,1.33059998]
[1719798714753,0.20284,63611.0,63610.0,1.46126312]
[1719798714988,0.20284,63611.0,63610.0,1.39239998]
[1719798715221,0.20284,63611.0,63610.0,1.8374773]
[1719798715689,0.20284,63611.0,63610.0,1.88433985]
[1719798716911,0.20284,63611.0,63610.0,1.8374773]
[1719798717150,0.20284,63611.0,63610.0,1.88433985]
[1719798717383,0.20284,63611.0,63610.0,1.7444773]
[1719798717614,0.20284,63611.0,63610.0,1.68917325]
[1719798720544,0.20284,63611.0,63610.0,1.55851498]
[1719798720857,0.20284,63611.0,63610.0,1.6891741]
[1719798721809,0.20284,63611.0,63610.0,1.7621741]
[1719798722453,0.20284,63611.0,63610.0,1.8372741]
[1719798723240,0.20284,63611.0,63610.0,1.83727375]
[1719798726384,0.20284,63611.0,63610.0,1.70661498]
[1719798726592,0.20284,63611.0,63610.0,1.83727375]
[1719798726806,0.20284,63611.0,63610.0,1.70661498]
[1719798727021,0.20284,63611.0,63610.0,1.83727375]
[1719798728470,0.20284,63611.0,63610.0,2.23727375]
[1719798728715,0.20284,63611.0,63610.0,2.67985995]
[1719798728894,0.20284,63611.0,63610.0,2.70328801]
[1719798729376,0.20284,63611.0,63610.0,2.57254533]
[1719798729582,0.20184,63611.0,63610.0,2.30511618]
[1719798729790,0.20184,63611.0,63610.0,2.19874536]
[1719798730005,0.20084,63611.0,63610.0,2.19374536]
[1719798730210,0.21484,63611.0,63610.0,2.15132439]
[1719798730419,0.22884,63611.0,63610.0,2.17132439]
[1719798730630,0.21484,63611.0,63610.0,0.69891483]
[1719798730831,0.21484,63611.0,63610.0,0.33256802]
[1719798731035,0.22884,63611.0,63610.0,0.33256802]
[1719798731243,0.21484,63611.0,63610.0,0.33256802]
[1719798731649,0.21484,63611.0,63610.0,0.33656802]
[1719798731650,0.20184,63611.0,63610.0,0.33656802]
[1719798732071,0.20784,63611.0,63610.0,0.33756802]
[1719798732487,0.20184,63611.0,63610.0,0.33659472]
[1719798732915,0.20084,63611.0,63610.0,0.34559472]
[1719798733290,0.20184,63611.0,63610.0,0.35959472]
[1719798733968,0.359045,63611.0,63610.0,0.35959472]
[1719798734128,0.359045,63611.0,63610.0,0.228924]
[1719798734330,0.827456,63611.0,63610.0,0.028924]
[1719798734741,1.141867,63611.0,63610.0,0.028924]
[1719798735113,1.16648578,63611.0,63610.0,0.028924]
[1719798735249,1.09348578,63611.0,63610.0,0.028924]
[1719798735656,1.068867,63611.0,63610.0,0.028924]
[1719798736088,0.440045,63611.0,63610.0,0.028924]
[1719798736479,0.439045,63611.0,63610.0,0.000924]
[1719798736911,0.20084,63611.0,63610.0,0.000924]
[1719798737107,0.20084,63611.0,63610.0,0.472546]
[1719798737311,0.20084,63611.0,63610.0,0.565546]
[1719798737520,0.20084,63611.0,63610.0,1.35671498]
[1719798737732,0.20084,63611.0,63610.0,1.48738317]
[1719798738058,0.20084,63611.0,63610.0,1.56758317]
[1719798738258,0.20084,63611.0,63610.0,1.62918317]
[1719798738640,0.20084,63611.0,63610.0,1.63017734]
[1719798739075,0.20084,63611.0,63610.0,1.62917734]
[1719798739657,0.20184,63611.0,63610.0,1.64317734]
[1719798739815,0.20184,63611.0,63610.0,1.57017734]
[1719798739971,0.20184,63611.0,63610.0,1.56617734]
[1719798740374,0.20284,63611.0,63610.0,1.58017734]
[1719798741266,0.20184,63611.0,63610.0,1.56617734]
[1719798741513,0.20884,63611.0,63610.0,1.43651498]
[1719798741742,0.20884,63611.0,63610.0,1.56716965]
[1719798742181,0.20184,63611.0,63610.0,1.76616965]
[1719798742383,0.20284,63611.0,63610.0,1.58016965]
[1719798744740,0.20284,63611.0,63610.0,1.58016964]
[1719798747859,0.20284,63611.0,63610.0,1.44951498]
[1719798748032,0.20284,63611.0,63610.0,1.58016964]
[1719798748231,0.20284,63611.0,63610.0,1.50396964]
[1719798748575,0.20284,63611.0,63610.0,1.18955464]
[1719798750502,0.20284,63611.0,63610.0,1.26545464]
[1719798751144,0.20284,63611.0,63610.0,1.13479998]
[1719798751351,0.20284,63611.0,63610.0,1.26545552]
[1719798751567,0.20284,63611.0,63610.0,1.46545552]
[1719798752036,0.20284,63611.0,63610.0,1.26545552]
[1719798752240,0.20284,63611.0,63610.0,1.77987052]
[1719798752796,0.20284,63611.0,63610.0,1.57987052]
[1719798752996,0.20284,63611.0,63610.0,1.26545552]
[1719798753422,0.20284,63611.0,63610.0,1.57987052]
[1719798754066,0.20284,63611.0,63610.0,1.44921498]
[1719798754275,0.20284,63611.0,63610.0,1.57986998]
[1719798754908,0.20284,63611.0,63610.0,1.26545498]
[1719798755433,0.20284,63611.0,63610.0,1.57986998]
[1719798755677,0.20284,63611.0,63610.0,1.26545498]
[1719798755887,0.20284,63611.0,63610.0,1.57986998]
[1719798756199,0.20284,63611.0,63610.0,1.26545498]
[1719798756830,0.20284,63611.0,63610.0,1.18955498]
[1719798757461,0.20284,63611.0,63610.0,1.18955532]
[1719798759553,0.20284,63611.0,63610.0,1.16955532]
[1719798759721,0.20284,63611.0,63610.0,1.18955532]
[1719798760393,0.20284,63611.0,63610.0,1.05889998]
[1719798760544,0.20284,63611.0,63610.0,1.18955565]
[1719798760945,0.20284,63611.0,63610.0,1.12795565]
[1719798763222,0.28594,63611.0,63610.0,0.79354065]
[1719798763423,0.28594,63611.0,63610.0,0.47912565]
[1719798763628,0.28594,63611.0,63610.0,0.34846998]
[1719798763833,0.28594,63611.0,63610.0,0.66288498]
[1719798764093,0.28594,63611.0,63610.0,0.34846998]
[1719798767145,0.28594,63611.0,63610.0,0.66288498]
[1719798767314,0.28594,63611.0,63610.0,0.19126298]
[1719798767520,0.28594,63611.0,63610.0,0.34846998]
[1719798767954,1.071967,63611.0,63610.0,0.028924]
[1719798768165,0.757556,63611.0,63610.0,0.028924]
[1719798771566,0.443145,63611.0,63610.0,0.028924]
[1719798776172,1.071967,63611.0,63610.0,0.028924]
[1719798776785,0.757556,63611.0,63610.0,0.028924]
[1719798779466,0.443145,63611.0,63610.0,0.028924]
[1719798779687,0.757556,63611.0,63610.0,0.028924]
[1719798789621,0.20284,63611.0,63610.0,0.028924]
[1719798790259,0.751956,63611.0,63610.0,0.028924]
[1719798790483,0.437545,63611.0,63610.0,0.028924]
[1719798790907,0.751956,63611.0,63610.0,0.028924]
[1719798794480,0.360045,63611.0,63610.0,0.028924]
[1719798794683,0.20284,63611.0,63610.0,0.028924]
[1719798795320,0.20284,63611.0,63610.0,0.092524]
[1719798795545,0.20284,63611.0,63610.0,1.13789998]
[1719798795762,0.20284,63611.0,63610.0,1.45231498]
[1719798797502,0.20184,63611.0,63610.0,1.43831498]
[1719798798413,0.20784,63611.0,63610.0,1.42531498]
[1719798798646,0.21884,63611.0,63610.0,1.42631498]
[1719798800032,0.21184,63611.0,63610.0,1.42531498]
[1719798800500,0.20084,63611.0,63610.0,1.42531498]
[1719798800968,0.20084,63611.0,63610.0,1.42431498]
[1719798801195,0.20084,63611.0,63610.0,1.42531498]
[1719798801423,0.20084,63611.0,63610.0,1.42631498]
[1719798801643,0.20084,63611.0,63610.0,1.62631498]
[1719798806820,0.20084,63611.0,63610.0,1.42631498]
[1719798809933,0.20084,63611.0,63610.0,2.73644844]
[1719798809934,0.05094,63611.0,63610.0,2.73644844]
[1719798810160,0.00084,63622.0,63621.0,1.943163]
[1719798810364,0.00084,63622.0,63621.0,2.80291351]
[1719798810567,0.00084,63622.0,63621.0,3.56233036]
[1719798810768,0.00084,63622.0,63621.0,3.55774256]
[1719798811463,0.00084,63622.0,63621.0,3.14468021]
[1719798811660,0.00084,63622.0,63621.0,3.16236679]
[1719798811870,0.00084,63622.0,63621.0,3.27176679]
[1719798812062,0.00084,63622.0,63621.0,3.25408021]
[1719798812191,0.00084,63622.0,63621.0,3.27176679]
[1719798812403,0.00084,63622.0,63621.0,3.29960157]
[1719798812627,0.0821,63651.0,63649.0,0.15711]
[1719798812839,0.48811044,63650.0,63649.0,0.17056623]
[1719798813048,0.0821,63651.0,63649.0,0.17056623]
[1719798813274,0.0821,63651.0,63650.0,0.157109]
[1719798813498,0.10195395,63651.0,63650.0,0.157109]
[1719798813721,0.10195395,63651.0,63650.0,0.471327]
[1719798813950,0.0778,63655.0,63654.0,0.157099]
[1719798814153,0.0778,63655.0,63654.0,0.471297]
[1719798815204,0.02021752,63656.0,63655.0,0.471289]
[1719798815404,0.00084,63656.0,63655.0,0.471289]
[1719798816528,0.00084,63656.0,63655.0,0.870682]
[1719798817278,0.00084,63656.0,63655.0,0.850682]
[1719798817454,0.00084,63656.0,63655.0,0.785482]
[1719798817677,0.00184,63656.0,63655.0,0.786482]
[1719798817809,0.00184,63656.0,63655.0,0.791482]
[1719798818004,0.00084,63656.0,63655.0,0.790482]
[1719798818211,0.00084,63656.0,63655.0,0.785482]
[1719798818415,0.00184,63656.0,63655.0,0.795482]
[1719798818830,0.00184,63656.0,63655.0,0.481289]
[1719798819673,0.00184,63656.0,63655.0,0.480289]
[1719798819888,0.08144,63656.0,63655.0,0.166096]
[1719798820091,0.08244,63656.0,63655.0,0.158096]
[1719798820331,0.08244,63656.0,63655.0,0.169096]
[1719798820496,0.14424,63656.0,63655.0,0.169096]
[1719798820704,0.14424,63656.0,63650.0,0.16233898]
[1719798820705,0.14324,63656.0,63650.0,0.16233898]
[1719798820910,0.14324,63656.0,63655.0,0.009]
[1719798821115,0.14424,63656.0,63655.0,0.01]
[1719798821312,0.14424,63656.0,63655.0,0.001]
[1719798821519,0.14324,63656.0,63655.0,0.011]
[1719798821918,0.14324,63656.0,63651.0,0.16233898]
[1719798822150,0.157099,63654.0,63650.0,0.01345623]
[1719798822626,0.157102,63653.0,63650.0,0.01345623]
[1719798823030,0.157099,63655.0,63650.0,0.01345623]
[1719798823285,0.14324,63656.0,63650.0,0.01345623]
[1719798823490,0.301334,63656.0,63655.0,0.009]
[1719798823643,0.615522,63656.0,63655.0,0.009]
[1719798823862,0.157099,63654.0,63650.0,0.01345623]
[1719798824096,0.001,63653.0,63650.0,0.01545623]
[1719798824283,0.315206,63653.0,63650.0,0.01545623]
[1719798824486,0.0801,63651.0,63650.0,0.01445623]
[1719798824690,0.0801,63651.0,63650.0,0.01345623]
[1719798825818,0.0801,63651.0,63650.0,0.07637223]
[1719798826551,0.0891,63651.0,63650.0,0.07737223]
[1719798826980,0.0891,63651.0,63650.0,0.08637223]
[1719798827259,0.0801,63651.0,63650.0,0.07637223]
[1719798827463,0.245206,63651.0,63650.0,0.08537223]
[1719798827894,0.245206,63651.0,63650.0,0.07637223]
[1719798828142,0.237206,63651.0,63650.0,0.08537223]
[1719798828316,0.245206,63651.0,63650.0,0.07637223]
[1719798829311,0.245206,63651.0,63650.0,0.062916]
[1719798829890,0.237206,63651.0,63650.0,0.062916]
[1719798830106,0.246206,63651.0,63650.0,0.063916]
[1719798830333,0.246206,63651.0,63650.0,0.072916]
[1719798830810,0.330906,63651.0,63650.0,0.072916]
[1719798831039,1.221732,63651.0,63650.0,0.01]
[1719798831288,0.157132,63641.0,63638.0,0.4793]
[1719798831509,0.157132,63641.0,63638.0,0.49275623]
[1719798831767,0.157132,63641.0,63639.0,0.062926]
[1719798831966,0.237332,63641.0,63639.0,0.062926]
[1719798832835,0.157133,63640.0,63639.0,0.062926]
[1719798833046,0.237331,63641.0,63639.0,0.062926]
[1719798833269,0.157131,63641.0,63639.0,0.062926]
[1719798833899,0.014,63641.0,63639.0,0.063926]
[1719798834540,0.014,63641.0,63639.0,0.064926]
[1719798835758,0.014,63641.0,63639.0,0.222062]
[1719798835938,0.014,63641.0,63640.0,0.97673898]
[1719798836764,0.014,63641.0,63640.0,1.31100598]
[1719798836995,0.1,63648.0,63645.0,0.157119]
[1719798837202,0.1,63648.0,63645.0,0.17057523]
[1719798837402,0.11946213,63651.0,63645.0,0.17057523]
[1719798837604,0.1,63651.0,63645.0,0.17057523]
[1719798838012,0.09811987,63652.0,63648.0,0.157113]
[1719798838209,0.09811987,63652.0,63648.0,0.314223]
[1719798838500,0.01941987,63652.0,63650.0,0.157108]
[1719798838688,0.1,63654.0,63650.0,0.157108]
[1719798838882,0.1,63654.0,63652.0,0.157103]
[1719798839079,0.1,63654.0,63652.0,0.17055923]
[1719798839284,0.00084,63656.0,63654.0,0.157099]
[1719798840561,0.00084,63656.0,63655.0,0.157096]
[1719798840982,0.02018445,63656.0,63654.0,0.004]
[1719798841328,0.00084,63656.0,63654.0,0.004]
[1719798841727,0.00084,63656.0,63655.0,0.062913]
[1719798841728,0.01484,63656.0,63655.0,0.062913]
[1719798841936,0.01484,63656.0,63655.0,0.066913]
[1719798843594,0.00084,63656.0,63655.0,0.062913]
[1719798843993,0.01484,63656.0,63655.0,0.063913]
[1719798844403,0.01484,63656.0,63655.0,0.067913]
[1719798846631,0.01484,63656.0,63655.0,0.063913]
[1719798846830,0.00084,63656.0,63655.0,0.062913]
[1719798847116,0.237034,63656.0,63655.0,0.067913]
[1719798847317,0.320334,63656.0,63655.0,0.063913]
[1719798847553,0.620522,63656.0,63655.0,0.066913]
[1719798847750,0.620522,63656.0,63655.0,0.004]
[1719798847979,0.634522,63656.0,63655.0,0.005]
[1719798848596,0.94871,63656.0,63655.0,0.005]
[1719798848841,0.634522,63656.0,63655.0,0.005]
[1719798849029,0.96431,63656.0,63655.0,0.005]
[1719798849304,1.12671,63656.0,63655.0,0.005]
[1719798849522,1.460898,63656.0,63655.0,0.005]
[1719798849742,0.95402,63652.0,63651.0,0.062918]
[1719798849956,0.619872,63644.0,63643.0,0.4793]
[1719798850170,0.619872,63644.0,63643.0,0.49275623]
[1719798850608,0.619872,63644.0,63643.0,0.55568123]
[1719798851318,0.619872,63644.0,63643.0,0.55668123]
[1719798851563,0.240224,63644.0,63643.0,0.55668123]
[1719798851783,0.157124,63644.0,63643.0,0.55668123]
[1719798852006,0.157124,63644.0,63643.0,0.07738123]
[1719798852457,0.471372,63644.0,63643.0,0.07738123]
[1719798853576,0.014,63644.0,63643.0,0.57790723]
[1719798853814,0.014,63644.0,63643.0,0.42078123]
[1719798854034,0.014,63644.0,63643.0,0.57790723]
[1719798854512,0.014,63644.0,63643.0,1.05449821]
[1719798854720,0.014,63644.0,63643.0,1.07449821]
[1719798854896,0.014,63644.0,63643.0,1.05449821]
[1719798855227,0.014,63644.0,63643.0,1.36875021]
[1719798855516,0.014,63644.0,63643.0,1.35529398]
[1719798855933,0.014,63644.0,63643.0,1.48589231]
[1719798857310,0.014,63644.0,63643.0,1.35529398]
[1719798858731,0.014,63644.0,63643.0,1.37529398]
[1719798859141,0.014,63644.0,63643.0,1.35529398]
[1719798860965,0.014,63644.0,63643.0,1.04104198]
[1719798861173,0.014,63644.0,63643.0,0.264925]
[1719798861457,0.014,63644.0,63643.0,0.422051]
[1719798861807,0.014,63644.0,63643.0,0.563751]
[1719798862417,0.014,63644.0,63643.0,0.264925]
[1719798862854,0.092,63644.0,63643.0,0.264925]
[1719798863770,0.171124,63644.0,63643.0,0.064925]
[1719798864675,0.485372,63644.0,63643.0,0.064925]
[1719798865370,0.485372,63644.0,63643.0,0.002]
[1719798867046,0.81962,63644.0,63643.0,0.002]
[1719798867258,0.79962,63644.0,63643.0,0.002]
[1719798867469,0.485372,63644.0,63643.0,0.002]
[1719798868135,0.157126,63643.0,63642.0,0.062926]
[1719798868337,0.157126,63643.0,63642.0,0.07638223]
[1719798869989,0.016,63644.0,63642.0,0.07638223]
[1719798870193,0.016,63644.0,63643.0,0.221026]
[1719798870449,0.016,63644.0,63643.0,1.01186898]
[1719798870832,0.014,63644.0,63643.0,1.03186898]
[1719798870992,0.01958555,63649.0,63643.0,1.03186898]
[1719798870993,0.01958555,63649.0,63648.0,0.157114]
[1719798871189,0.257101,63654.0,63648.0,0.157114]
[1719798872224,0.014,63649.0,63648.0,0.157114]
[1719798872685,0.27623438,63654.0,63648.0,0.157114]
[1719798873017,0.157102,63653.0,63648.0,0.157114]
[1719798873726,0.002,63649.0,63648.0,0.157114]
[1719798873928,0.157102,63653.0,63648.0,0.157114]
[1719798874362,0.157102,63653.0,63648.0,0.001]
[1719798874363,0.157104,63652.0,63648.0,0.001]
[1719798874767,0.157107,63651.0,63648.0,0.001]
[1719798875929,0.014,63652.0,63646.0,0.157117]
[1719798876130,0.014,63652.0,63647.0,0.157115]
[1719798876339,0.163104,63652.0,63648.0,0.001]
[1719798876540,0.163104,63652.0,63645.0,0.31424]
[1719798876541,0.157106,63651.0,63645.0,0.31424]
[1719798876740,0.157106,63651.0,63646.0,0.157117]
[1719798876960,0.161106,63651.0,63646.0,0.157117]
[1719798877166,0.161106,63651.0,63644.0,0.2]
[1719798877167,0.0759,63647.0,63644.0,0.2]
[1719798877557,0.233017,63647.0,63644.0,0.2]
[1719798878677,0.0759,63647.0,63644.0,0.2]
[1719798878911,0.0899,63647.0,63644.0,0.2]
[1719798880414,0.014,63647.0,63644.0,0.201]
[1719798881659,0.171116,63647.0,63644.0,0.201]
[1719798881860,0.157119,63646.0,63644.0,0.201]
[1719798883146,0.157119,63646.0,63644.0,0.2]
[1719798883571,0.157119,63646.0,63644.0,0.202]
[1719798883771,0.157121,63646.0,63644.0,0.202]
[1719798884417,0.471364,63645.0,63644.0,0.202]
[1719798885839,0.485364,63645.0,63644.0,0.202]
[1719798886247,0.485364,63645.0,63644.0,0.2]
[1719798886453,0.471364,63645.0,63644.0,0.2]
[1719798887082,0.471364,63645.0,63644.0,0.204]
[1719798887909,0.171121,63645.0,63644.0,0.204924]
[1719798888549,0.485364,63645.0,63644.0,0.21838023]
[1719798888749,0.014,63645.0,63644.0,0.21838023]
[1719798889602,0.014,63645.0,63644.0,0.204924]
[1719798894066,0.014,63645.0,63644.0,0.501848]
[1719798894307,0.014,63645.0,63644.0,0.99843498]
[1719798894485,0.014,63645.0,63644.0,1.29268298]
[1719798894668,0.014,63645.0,63644.0,1.31268298]
[1719798895125,0.014,63645.0,63644.0,1.29268298]
[1719798895830,0.014,63645.0,63644.0,1.31268298]
[1719798896561,0.014,63645.0,63644.0,1.29268298]
[1719798896788,0.014,63645.0,63644.0,1.31268298]
[1719798898170,0.014,63645.0,63644.0,1.29268298]
[1719798898399,0.014,63645.0,63644.0,1.31268298]
[1719798898639,0.014,63645.0,63644.0,1.62693098]
[1719798899575,0.014,63645.0,63644.0,1.60693098]
[1719798899803,0.014,63645.0,63644.0,1.62693098]
[1719798900039,0.014,63645.0,63644.0,1.62293098]
[1719798900294,0.01957062,63652.0,63651.0,0.471319]
[1719798900520,0.073,63654.0,63653.0,0.157101]
[1719798901438,0.073,63654.0,63653.0,0.471304]
[1719798902085,0.00084,63655.0,63654.0,0.471297]
[1719798902505,0.00084,63655.0,63654.0,0.785495]
[1719798903586,0.00684,63655.0,63654.0,0.786495]
[1719798903802,0.00084,63655.0,63654.0,0.785495]
[1719798904016,0.01484,63655.0,63654.0,0.785495]
[1719798904341,0.02121017,63655.0,63654.0,0.792495]
[1719798904758,0.03221017,63655.0,63654.0,0.792495]
[1719798904958,0.01284,63655.0,63654.0,0.792495]
[1719798906600,0.08954,63655.0,63654.0,0.792495]
[1719798912059,0.08954,63655.0,63654.0,0.007]
[1719798912239,0.08954,63655.0,63654.0,0.164099]
[1719798913313,0.08954,63655.0,63654.0,0.478297]
[1719798914999,0.01284,63655.0,63654.0,0.478297]
[1719798915844,0.01284,63655.0,63654.0,0.164099]
[1719798916053,0.09604,63655.0,63654.0,0.007]
[1719798917749,0.01284,63655.0,63654.0,0.478297]
[1719798917959,0.01284,63655.0,63654.0,0.856895]
[1719798921851,0.01284,63655.0,63654.0,0.857819]
[1719798928407,0.01284,63655.0,63654.0,0.793419]
[1719798929787,0.09374,63655.0,63654.0,0.479221]
[1719798931991,0.09374,63655.0,63654.0,0.165023]
[1719798935918,0.09374,63655.0,63654.0,0.479221]
[1719798937311,0.01284,63655.0,63654.0,0.479221]
[1719798946008,0.01284,63655.0,63654.0,0.793419]
[1719798956095,0.01284,63655.0,63654.0,0.92399696]
[1719798957277,0.01284,63655.0,63654.0,0.923997]
[1719798961588,0.01284,63655.0,63654.0,0.793419]